{"text_format":"1","workbook":"xlsx","n_sheets":4,"sheets":["ข้อมูลพื้นฐาน (โปรดกรอกข้อมูล)","ตารางคะแนนรายตัวบ่งชี้ (ป1) ","ตารางวิเคราะห์รายมาตรฐาน (ป2)","variable"],"not_rendered":{"charts":0,"images":0,"macros":1,"external_links":0,"defined_names":0,"comments":2,"pivot_tables":0},"unopened":[],"bounds":{"document_bytes":16777216,"sheet_cells":100000,"rows_first":2000,"rows_last":500,"rows_between":2000,"halvings":0,"cell_chars":16384,"cell_head_chars":4096},"cells_cut":0,"cells_raw":0,"read":"whole","date_system":"1900"}

{"sheet":"ข้อมูลพื้นฐาน (โปรดกรอกข้อมูล)","index":0,"n_rows":75,"n_cols":10,"rows_kept":75,"cut":false,"hidden":false,"merged":[[2,1,2,3],[62,1,62,3]]}
["มาตรฐานที่ 1",null,"วิทยาเขต","สุพรรณบุรี"]
["1.1 คุณภาพบัณฑิตตามกรอบมาตรฐานคุณวุฒิระดับอุดมศึกษาแห่งชาติ"]
["คณะ","สาขาวิชา (ปริญญาตรี)"]
["วิทยาศาสตร์การกีฬาและสุขภาพ","วิทยาศาสตร์การกีฬา","วิทยาศาสตร์สุขภาพ","การฝึกสอนกีฬา"]
["คะแนนผลการประเมินบัณฑิต",4.91,null,4.93]
[]
["1.2 บัณฑิตปริญญาตรีที่ได้งานทำรวมกับผลงานของนักศึกษาและผู้สำเร็จการศึกษาในระดับปริญญาโทที่ได้รับการตีพิมพ์หรือเผลแพร่"]
["ระดับ","คะแนนที่ได้จากการแปลงค่าร้อยละของบัณฑิต ป.ตรี ที่ได้งานทำฯ","จำนวนหลักสูตร"]
["ปริญญาตรี",10,{"$f":"IF(A4=\"วิทยาศาสตร์การกีฬาและสุขภาพ\",COUNTIF(B5:D5,\">0\"),IF(A4=\"ศิลปศาสตร์\",COUNTIF(B5:G5,\">0\"),IF(A4=\"ศึกษาศาสตร์\",COUNTIF(B5:E5,\">0\"),\"\")))","v":2}]
["ปริญญาโท",null,{"$f":"IF(A4=\"วิทยาศาสตร์การกีฬาและสุขภาพ\",\"\",IF(A4=\"ศิลปศาสตร์\",COUNTIF(I5,\">0\"),IF(A4=\"ศึกษาศาสตร์\",COUNTIF(G5,\">0\"),\"\")))","v":""}]
[]
["มาตรฐานที่ 2"]
["2.1 ผลงานทางวิชาการของอาจารย์ประจำ"]
["รายการ","ข้อมูล"]
["ผลรวมถ่วงน้ำหนักของผลงานทางวิชาการของอาจารย์ประจำคณะ",1.6]
["จำนวนอาจารย์ประจำคณะทั้งหมด",17]
[]
["2.2 ผลงานวิจัยที่นำไปใช้ประโยชน์ของอาจารย์ประจำคณะ"]
["รายการ","ข้อมูล"]
["จำนวนผลงานวิจัยที่นำไปใช้ประโยชน์",3]
["จำนวนผลงานวิจัยทั้งหมด",4]
[]
["มาตรฐานที่ 3"]
["3.1 ผู้รับบริการทางวิชาการ"]
["รายการ","ข้อมูล"]
["จำนวนผู้รับบริการทางวิชาการทั้งหมด",136421]
[]
["มาตรฐานที่ 4"]
["4.1 การละเล่นพื้นบ้านและกีฬาไทยที่ได้รับการฟื้นฟู อนุรักษ์ เผยแพร่ และวิจัย"]
["รายการ","ข้อมูล"]
["จำนวนกิจกรรมการละเล่นพื้นบ้านและกีฬาไทยทั้งหมด",2]
[]
["มาตรฐานที่ 5"]
["รายการ","ดำเนินการ (ข้อ)",null,"ข้อ 1","ข้อ 2","ข้อ 3","ข้อ 4","ข้อ 5","ข้อ 6"]
["5.2.1 การพัฒนาผู้เรียนแบบบูรณาการ",{"$f":"COUNTIF(D35:I35,\"ดำเนินการ\")","v":6},null,"ดำเนินการ","ดำเนินการ","ดำเนินการ","ดำเนินการ","ดำเนินการ","ดำเนินการ"]
["5.2.2 กิจกรรมนักศึกษาระดับปริญญาตรี",{"$f":"COUNTIF(D36:I36,\"ดำเนินการ\")","v":6},null,"ดำเนินการ","ดำเนินการ","ดำเนินการ","ดำเนินการ","ดำเนินการ","ดำเนินการ"]
["5.2.3 การบริหารงานวิจัยและนวัตกรรม",{"$f":"COUNTIF(D37:I37,\"ดำเนินการ\")","v":6},null,"ดำเนินการ","ดำเนินการ","ดำเนินการ","ดำเนินการ","ดำเนินการ","ดำเนินการ"]
[]
["5.2.4 - 5.2.5 เงินสนับสนุนงานวิจัยและนวัตกรรม"]
["รายการ","ข้อมูล (เงินรายได้)","ข้อมูล (งบประมาณแผ่นดิน"]
["จำนวนเงินสนับสนุนงานวิจัยและนวัตกรรม",71906,90000]
["จำนวนอาจารย์ประจำคณะทั้งหมด",17,17]
[]
["5.2.7 การบริหารงานศิลปวัฒนธรรมและความเป็นไทย ด้านการละเล่นพื้นบ้าน และกีฬาไทย"]
["รายการ","ดำเนินการ (ข้อ)",null,"ข้อ 1","ข้อ 2","ข้อ 3","ข้อ 4","ข้อ 5","ข้อ 6"]
["การดำเนินการบริหารศิลปวัฒนธรรมและความเป็นไทยฯ",{"$f":"COUNTIF(D46:I46,\"ดำเนินการ\")","v":6},null,"ดำเนินการ","ดำเนินการ","ดำเนินการ","ดำเนินการ","ดำเนินการ","ดำเนินการ"]
[]
["5.2.8 อาจารย์ประจำคณะที่มีคุณวุฒิปริญญาเอก"]
["รายการ","ข้อมูล"]
["จำนวนอาจารย์ประจำคณะที่มีคุณวุฒิปริญญาเอก",5]
["อาจารย์ประจำคณะทั้งหมด",18]
[]
["5.2.9 อาจารย์ประจำคณะที่ดำรงตำแหน่งทางวิชาการ "]
["รายการ","ข้อมูล"]
["จำนวนอาจารย์ประจำคณะที่ดำรงตำแหน่งทางวิชาการ",11]
["อาจารย์ประจำคณะทั้งหมด",16]
[]
["5.2.10 การบริหารของคณะเพื่อสนับสนุนการดำเนินงานตามพันธกิจ"]
["รายการ","ดำเนินการ (ข้อ)",null,"ข้อ 1","ข้อ 2","ข้อ 3","ข้อ 4","ข้อ 5"]
["การดำเนินการบริหารของคณะเพื่อสนับสนุนการดำเนินงานฯ",{"$f":"COUNTIF(D60:H60,\"ดำเนินการ\")","v":5},null,"ดำเนินการ","ดำเนินการ","ดำเนินการ","ดำเนินการ","ดำเนินการ"]
[]
["5.2.11 ผลการประเมินหลักสูตรทุกหลักสูตรของคณะ"]
["คณะ","สาขาวิชา (ปริญญาตรี)",null,null,null,null,{"$f":"IF(G3<>\"\",G3,\"\")","v":""},null,{"$f":"IF(I3<>\"\",I3,\"\")","v":""},{"$f":"IF(J3<>\"\",J3,\"\")","v":""}]
[{"$f":"A4","v":"วิทยาศาสตร์การกีฬาและสุขภาพ"},{"$f":"IF(B4<>\"\",B4,\"\")","v":"วิทยาศาสตร์การกีฬา"},{"$f":"IF(C4<>\"\",C4,\"\")","v":"วิทยาศาสตร์สุขภาพ"},{"$f":"IF(D4<>\"\",D4,\"\")","v":"การฝึกสอนกีฬา"},{"$f":"IF(E4<>\"\",E4,\"\")","v":""},{"$f":"IF(F4<>\"\",F4,\"\")","v":""},{"$f":"IF(G4<>\"\",G4,\"\")","v":""},{"$f":"IF(H4<>\"\",H4,\"\")","v":""},{"$f":"IF(I4<>\"\",I4,\"\")","v":""},{"$f":"IF(J4<>\"\",J4,\"\")","v":""}]
["ผลการประเมินหลักสูตรทุกหลักสูตรของคณะ",3.76,null,3.69]
[]
["5.3 การบริหารการประกันคุณภาพการศึกษาภายใน"]
["รายการ","ดำเนินการ (ข้อ)",null,"ข้อ 1","ข้อ 2","ข้อ 3","ข้อ 4","ข้อ 5","ข้อ 6"]
["การดำเนินการบริหารการประกันคุณภาพการศึกษาภายใน",{"$f":"COUNTIF(D69:I69,\"ดำเนินการ\")","v":6},null,"ดำเนินการ","ดำเนินการ","ดำเนินการ","ดำเนินการ","ดำเนินการ","ดำเนินการ"]
[]
["มาตรฐานที่ 6"]
["6.1 การเข้าร่วมการแข่งขันกีฬาระดับชาติหรือนานาชาติของนักศึกษา "]
["รายการ","จำนวน"]
["จำนวนการเข้าร่วมการแข่งขันกีฬาฯ",59]
["จำนวนนักศึกษาทั้งหมดของคณะ",293]

{"sheet":"ตารางคะแนนรายตัวบ่งชี้ (ป1) ","index":1,"n_rows":48,"n_cols":9,"rows_kept":48,"cut":false,"hidden":false,"merged":[[47,4,47,7],[46,0,47,3],[41,4,41,5],[41,6,41,7],[43,4,44,5],[43,6,44,7],[46,4,46,7],[45,1,45,2],[43,0,44,0],[43,3,44,3],[42,0,42,8],[43,1,44,1],[43,8,44,8],[19,6,19,7],[19,4,19,5],[21,4,21,5],[16,3,17,3],[18,0,18,8],[20,0,20,8],[16,8,17,8],[21,6,21,7],[8,0,10,0],[11,1,11,2],[12,1,12,2],[14,1,15,1],[9,5,10,5],[6,0,7,0],[6,1,7,1],[16,0,17,0],[16,1,17,1],[3,3,3,5],[4,3,4,5],[14,4,15,5],[13,0,13,8],[9,3,10,3],[6,8,7,8],[5,0,5,8],[14,0,15,0],[14,3,15,3],[14,8,15,8],[6,3,7,5],[8,1,10,1],[3,6,4,7],[2,2,2,7],[16,4,17,5],[16,6,17,7],[8,6,10,7],[6,6,7,7],[14,6,15,7],[25,4,25,5],[26,4,26,5],[25,6,25,7],[26,6,26,7],[22,0,22,8],[23,1,23,2],[24,1,24,2],[39,0,40,0],[39,1,40,1],[36,1,37,1],[28,1,29,1],[33,6,33,7],[33,4,33,5],[28,0,29,0],[38,4,38,5],[38,6,38,7],[39,6,40,7],[39,3,40,5],[34,6,35,7],[36,4,37,5],[36,6,37,7],[34,4,35,5],[27,4,27,5],[27,6,27,7],[28,4,29,5],[28,6,29,7],[30,4,31,5],[30,6,31,7],[2,8,4,8],[2,0,4,1],[39,8,40,8],[36,8,37,8],[34,8,35,8],[28,8,29,8],[30,8,31,8],[36,0,37,0],[28,3,29,3],[30,3,31,3],[34,3,35,3],[36,3,37,3],[30,0,31,0],[30,1,31,1],[34,0,35,0],[34,1,35,1]]}
["ตารางคำนวณคะแนนระดับคณะ สำหรับการประเมินปีการศึกษา 2562",null,null,null,"กรอกเฉพาะช่องหมายเหตุ"]
["คณะ",{"$f":"\"  \"&'ข้อมูลพื้นฐาน (โปรดกรอกข้อมูล)'!A4","v":"  วิทยาศาสตร์การกีฬาและสุขภาพ"},null,"วิทยาเขต",null,{"$f":"'ข้อมูลพื้นฐาน (โปรดกรอกข้อมูล)'!D1","v":"สุพรรณบุรี"}]
["มาตรฐาน/ตัวบ่งชี้",null,"ผลการดำเนินงานระดับคณะ",null,null,null,null,null,"หมายเหตุ \n(เหตุผลการประเมินที่ต่างจาก SAR)"]
[null,null,"ตัวตั้ง","ผลลัพธ์",null,null,"คะแนนประเมิน"]
[null,null,"ตัวหาร","(% หรือ สัดส่วน)"]
["มาตรฐานที่ 1 ผลลัพธ์ผู้เรียน"]
["ตัวบ่งชี้ 1.1","คุณภาพบัณฑิตตามกรอบมาตรฐานคุณวุฒิระดับอุดมศึกษาแห่งชาติ",{"$f":"SUM('ข้อมูลพื้นฐาน (โปรดกรอกข้อมูล)'!B5:I5)","v":9.84},"ค่าเฉลี่ย",null,null,{"$f":"IFERROR(ROUND(C7/C8,2),0)","v":4.92}]
[null,null,{"$f":"COUNT('ข้อมูลพื้นฐาน (โปรดกรอกข้อมูล)'!B5:I5)","v":2}]
["ตัวบ่งชี้ 1.2","บัณฑิตปริญญาตรีที่ได้งานทำรวมกับผลงานของนักศึกษาและผู้สำเร็จการศึกษาในระดับปริญญาโทที่ได้รับการตีพิมพ์หรือเผยแพร่","ปริญญาตรี","คะแนน","ปริญญาโท","คะแนน",{"$f":"IFERROR(IF(OR('ข้อมูลพื้นฐาน (โปรดกรอกข้อมูล)'!B10=\"\",'ข้อมูลพื้นฐาน (โปรดกรอกข้อมูล)'!C10=\"\",'ข้อมูลพื้นฐาน (โปรดกรอกข้อมูล)'!B10=0,'ข้อมูลพื้นฐาน (โปรดกรอกข้อมูล)'!C10=0),D10,ROUND((D10+F10)/2,2)),0)","v":5}]
[null,null,{"$f":"'ข้อมูลพื้นฐาน (โปรดกรอกข้อมูล)'!B9","v":10},{"$f":"IFERROR(ROUND(C10/C11,2),0)","v":5},{"$f":"'ข้อมูลพื้นฐาน (โปรดกรอกข้อมูล)'!B10","v":0},{"$f":"IFERROR(ROUND(E10/E11,2),0)","v":0}]
[null,null,{"$f":"'ข้อมูลพื้นฐาน (โปรดกรอกข้อมูล)'!C9","v":2},null,{"$f":"'ข้อมูลพื้นฐาน (โปรดกรอกข้อมูล)'!C10","v":""}]
["ตัวบ่งชี้ 1.3","นักศึกษาชั้นปีสุดท้ายที่เป็นผู้สร้างหรือผู้ร่วมสร้างสรรค์นวัตกรรม (เริ่มใช้ประเมินปีการศึกษา 2563)"]
["ตัวบ่งชี้ 1.4","นักศึกษาชั้นปีสุดท้ายที่สอบผ่านภาษาอังกฤษตามเกณฑ์ที่กำหนด (เริ่มใช้ประเมินปีการศึกษา 2563)"]
["มาตรฐานที่ 2 ผลลัพธ์การวิจัยและนวัตกรรม"]
["ตัวบ่งชี้ 2.1","ผลงานทางวิชาการของอาจารย์ประจำคณะ ",{"$f":"'ข้อมูลพื้นฐาน (โปรดกรอกข้อมูล)'!B15","v":1.6},"คิดเป็น\nร้อยละ",{"$f":"IFERROR(ROUND((C15*100)/C16,2),0)","v":9.41},null,{"$f":"IFERROR(IF(ROUND((E15/variable!B3)*5,2)>5,5,ROUND((E15/variable!B3)*5,2)),0)","v":1.57}]
[null,null,{"$f":"'ข้อมูลพื้นฐาน (โปรดกรอกข้อมูล)'!B16","v":17}]
["ตัวบ่งชี้ 2.2","ผลงานวิจัยที่นำไปใช้ประโยชน์ของอาจารย์ประจำคณะ",{"$f":"'ข้อมูลพื้นฐาน (โปรดกรอกข้อมูล)'!B20","v":3},"คิดเป็น\nร้อยละ",{"$f":"IFERROR(ROUND((C17*100)/C18,2),0)","v":75},null,{"$f":"IFERROR(IF(ROUND((E17/50)*5,2)>5,5,ROUND((E17/50)*5,2)),0)","v":5}]
[null,null,{"$f":"'ข้อมูลพื้นฐาน (โปรดกรอกข้อมูล)'!B21","v":4}]
["มาตรฐานที่ 3 ผลลัพธ์การบริการวิชาการ"]
["ตัวบ่งชี้ 3.1","ผู้รับบริการทางวิชาการ",{"$f":"'ข้อมูลพื้นฐาน (โปรดกรอกข้อมูล)'!B26","v":136421},"คิดเป็น\nร้อยละ",{"$f":"IFERROR(ROUND((C20*100)/10800,2),0)","v":1263.1600000000001},null,{"$f":"IFERROR(IF(ROUND((E20/90)*5,2)>5,5,ROUND((E20/90)*5,2)),0)","v":5}]
["มาตรฐานที่ 4 ผลลัพธ์ศิลปวัฒนธรรมและความเป็นไทยการละเล่นพื้นบ้านและกีฬาไทย"]
["ตัวบ่งชี้ 4.1","การละเล่นพื้นบ้านและกีฬาไทยที่ได้รับการฟื้นฟู อนุรักษ์ เผยแพร่ หรือวิจัย",{"$f":"'ข้อมูลพื้นฐาน (โปรดกรอกข้อมูล)'!B31","v":2},"คิดเป็น\nร้อยละ",{"$f":"IFERROR(IF(ROUND((C22*100)/2,2)>=100,100,ROUND((C22*100)/2,2)),0)","v":100},null,{"$f":"IFERROR(IF(ROUND((E22/100)*5,2)>5,5,ROUND((E22/100)*5,2)),0)","v":5}]
["มาตรฐานที่ 5 การบริหารจัดการ"]
["ตัวบ่งชี้ 5.1.1","หลักสูตรที่ขึ้นทะเบียนในฐานข้อมูลหลักสูตรที่มีคุณภาพและมาตรฐานตามกรอบคุณวุฒิระดับอุดมศึกษาแห่งชาติ (Thai Qualifications Register: TQR)  (เริ่มใช้ประเมินปีการศึกษา 2565)"]
["ตัวบ่งชี้ 5.1.2","หลักสูตรวิชาชีพที่ผ่านการรับรองจากองค์กรหรือสภาวิชาชีพ (ถ้ามี)  (เริ่มใช้ประเมินปีการศึกษา 2563)"]
["ตัวบ่งชี้ 5.2.1","การพัฒนาผู้เรียนแบบบูรณาการ        ","เกณฑ์มาตรฐาน 6  ข้อ  \nดำเนินการได้",{"$f":"'ข้อมูลพื้นฐาน (โปรดกรอกข้อมูล)'!B35","v":6},"\nคิดเป็นคะแนน\n",null,{"$f":"IF(D26>=6,5,IF(D26>=5,4,IF(D26>=3,3,IF(D26>=2,2,IF(D26>=1,1,0)))))","v":5}]
["ตัวบ่งชี้ 5.2.2","กิจกรรมนักศึกษาระดับปริญญาตรี  ","เกณฑ์มาตรฐาน 6  ข้อ  \nดำเนินการได้",{"$f":"'ข้อมูลพื้นฐาน (โปรดกรอกข้อมูล)'!B36","v":6},"\nคิดเป็นคะแนน\n",null,{"$f":"IF(D27>=6,5,IF(D27>=5,4,IF(D27>=3,3,IF(D27>=2,2,IF(D27>=1,1,0)))))","v":5}]
["ตัวบ่งชี้ 5.2.3","การบริหารงานวิจัยและนวัตกรรม","เกณฑ์มาตรฐาน 6  ข้อ  \nดำเนินการได้",{"$f":"'ข้อมูลพื้นฐาน (โปรดกรอกข้อมูล)'!B37","v":6},"\nคิดเป็นคะแนน",null,{"$f":"IF(D28>=6,5,IF(D28>=5,4,IF(D28>=3,3,IF(D28>=2,2,IF(D28>=1,1,0)))))","v":5}]
["ตัวบ่งชี้ 5.2.4","เงินสนับสนุนงานวิจัยและนวัตกรรม \n(เงินรายได้)",{"$f":"'ข้อมูลพื้นฐาน (โปรดกรอกข้อมูล)'!B41","v":71906},"คิดเป็นคะแนน",{"$f":"IFERROR(ROUND(C29/C30,2),0)","v":4229.76},null,{"$f":"IFERROR(IF(ROUND((E29/variable!B2)*5,2)>5,5,ROUND((E29/variable!B2)*5,2)),0)","v":0.85}]
[null,null,{"$f":"'ข้อมูลพื้นฐาน (โปรดกรอกข้อมูล)'!B42","v":17}]
["ตัวบ่งชี้ 5.2.5","เงินสนับสนุนงานวิจัยและนวัตกรรม \n(เงินงบประมาณแผ่นดิน)",{"$f":"'ข้อมูลพื้นฐาน (โปรดกรอกข้อมูล)'!C41","v":90000},"คิดเป็นคะแนน",{"$f":"IFERROR(ROUND(C31/C32,2),0)","v":5294.12},null,{"$f":"IFERROR(IF(ROUND((E31/variable!B4)*5,2)>5,5,ROUND((E31/variable!B4)*5,2)),0)","v":0.53}]
[null,null,{"$f":"'ข้อมูลพื้นฐาน (โปรดกรอกข้อมูล)'!C42","v":17}]
["ตัวบ่งชี้ 5.2.6","การบริหารการบริการวิชาการแก่สังคม (เริ่มใช้ประเมินปีการศึกษา 2563)"]
["ตัวบ่งชี้ 5.2.7","การบริหารงานศิลปวัฒนธรรมและความเป็นไทย \nด้านการละเล่นพื้นบ้าน และกีฬาไทย","เกณฑ์มาตรฐาน 6  ข้อ  \nดำเนินการได้",{"$f":"'ข้อมูลพื้นฐาน (โปรดกรอกข้อมูล)'!B46","v":6},"คิดเป็นคะแนน",null,{"$f":"IF(D34>=6,5,IF(D34>=5,4,IF(D34>=3,3,IF(D34>=2,2,IF(D34>=1,1,0)))))","v":5}]
["ตัวบ่งชี้ 5.2.8","อาจารย์ประจำคณะที่มีคุณวุฒิปริญญาเอก ",{"$f":"'ข้อมูลพื้นฐาน (โปรดกรอกข้อมูล)'!B50","v":5},"คิดเป็น\nคะแนน",{"$f":"IFERROR(ROUND((C35/C36)*100,2),0)","v":27.78},null,{"$f":"IFERROR(IF(ROUND(E35/40*(5),2)>=5,5,ROUND(E35/40*(5),2)),0)","v":3.47}]
[null,null,{"$f":"'ข้อมูลพื้นฐาน (โปรดกรอกข้อมูล)'!B51","v":18}]
["ตัวบ่งชี้ 5.2.9","อาจารย์ประจำคณะที่ดำรงตำแหน่งทางวิชาการ ",{"$f":"'ข้อมูลพื้นฐาน (โปรดกรอกข้อมูล)'!B55","v":11},"คิดเป็น\nคะแนน",{"$f":"IFERROR(ROUND((C37/C38)*100,2),0)","v":68.75},null,{"$f":"IFERROR(IF(ROUND(E37/60*(5),2)>=5,5,ROUND(E37/60*(5),2)),0)","v":5}]
[null,null,{"$f":"'ข้อมูลพื้นฐาน (โปรดกรอกข้อมูล)'!B56","v":16}]
["ตัวบ่งชี้ 5.2.10","การบริหารของคณะเพื่อสนับสนุนการดำเนินงานตามพันธกิจ","เกณฑ์มาตรฐาน 5  ข้อ  \nดำเนินการได้",{"$f":"'ข้อมูลพื้นฐาน (โปรดกรอกข้อมูล)'!B60","v":5},"คิดเป็นคะแนน",null,{"$f":"IF(D39>=5,5,IF(D39>=4,4,IF(D39>=3,3,IF(D39>=2,2,IF(D39>=1,1,0)))))","v":5}]
["ตัวบ่งชี้ 5.2.11","ผลการประเมินหลักสูตรทุกหลักสูตรของคณะ",{"$f":"SUM('ข้อมูลพื้นฐาน (โปรดกรอกข้อมูล)'!B65:G65)","v":7.4499999999999993},"ค่าเฉลี่ย",null,null,{"$f":"IFERROR(ROUND(C40/C41,2),0)","v":3.73}]
[null,null,{"$f":"COUNT('ข้อมูลพื้นฐาน (โปรดกรอกข้อมูล)'!B65:G65)","v":2}]
["ตัวบ่งชี้ 5.3","การบริหารการประกันคุณภาพการศึกษาภายใน","เกณฑ์มาตรฐาน 6  ข้อ  \nดำเนินการได้",{"$f":"'ข้อมูลพื้นฐาน (โปรดกรอกข้อมูล)'!B69","v":6},"คิดเป็นคะแนน",null,{"$f":"IF(D42>=6,5,IF(D42>=5,4,IF(D42>=3,3,IF(D42>=2,2,IF(D42>=1,1,0)))))","v":5}]
["มาตรฐานที่ 6 อัตลักษณ์ของนักศึกษาด้านกีฬา  "]
["ตัวบ่งชี้ 6.1","การเข้าร่วมการแข่งขันกีฬาระดับชาติหรือนานาชาติของนักศึกษา  ",{"$f":"'ข้อมูลพื้นฐาน (โปรดกรอกข้อมูล)'!B74","v":59},"คิดเป็น\nคะแนน",{"$f":"IFERROR(ROUND((C44*100)/C45,2),0)","v":20.14},null,{"$f":"IFERROR(IF(ROUND((E44/variable!B5)*5,2)>5,5,ROUND((E44/variable!B5)*5,2)),0)","v":5}]
[null,null,{"$f":"'ข้อมูลพื้นฐาน (โปรดกรอกข้อมูล)'!B75","v":293}]
["ตัวบ่งชี้ 6.2","ความมีน้ำใจนักกีฬาของนักศึกษา (เริ่มใช้ประเมินปีการศึกษา 2563)"]
["ตัวบ่งชี้ที่ประเมินปีการศึกษา 2562  มาตรฐาน 18 ตัวบ่งชี้",null,null,null,"คะแนนประเมินเท่ากับ",null,null,null,"ระดับคุณภาพ"]
[null,null,null,null,{"$f":"(SUM(G7,G9,G15,G17,G20,G22,G26,G27,G28,G29,G31,G34,G35,G37,G39,G40,G42,G44)/18)","v":4.1705555555555556},null,null,null,{"$f":"IF(AND(E48>=4.51,E48<=5),\"ดีมาก\",IF(AND(E48>=3.51,E48<4.51),\"ดี\",IF(AND(E48>=2.51,E48<3.51),\"พอใช้\",IF(AND(E48>=1.51,E48<2.51),\"ปรับปรุง\",IF(AND(E48<>0,E48<1.51),\"ปรับปรุงเร่งด่วน\",\"\")))))","v":"ดี"}]

{"sheet":"ตารางวิเคราะห์รายมาตรฐาน (ป2)","index":2,"n_rows":19,"n_cols":9,"rows_kept":19,"cut":false,"hidden":false,"merged":[[0,1,0,8],[4,1,9,1],[4,2,9,2],[4,3,6,7],[7,3,9,3],[7,4,9,4],[7,5,9,5],[7,6,9,6],[7,7,9,7],[1,2,1,4],[16,1,16,2],[16,7,18,7],[16,8,18,8],[17,1,17,3],[18,1,18,3]]}
[null,"ตารางวิเคราะห์ผลการประเมินระดับคณะ"]
[null,"คณะ",{"$f":"'ข้อมูลพื้นฐาน (โปรดกรอกข้อมูล)'!A4","v":"วิทยาศาสตร์การกีฬาและสุขภาพ"}]
[null,"มหาวิทยาลัยการกีฬาแห่งชาติ ",null,"วิทยาเขต",null,{"$f":"'ข้อมูลพื้นฐาน (โปรดกรอกข้อมูล)'!D1","v":"สุพรรณบุรี"}]
[]
[null,"มาตรฐาน\nที่","ด้าน","คะแนนการประเมิน",null,null,null,null,"ผลการประเมิน"]
[null,null,null,null,null,null,null,null,"0.00 – 1.50 การดำเนินงานต้องปรับปรุงเร่งด่วน"]
[null,null,null,null,null,null,null,null,"1.51 – 2.50 การดำเนินงานต้องปรับปรุง"]
[null,null,null,"จำนวน\nตัวบ่งชี้","Input","Process","Output","คะแนนเฉลี่ย","2.51 – 3.50 การดำเนินงานระดับพอใช้"]
[null,null,null,null,null,null,null,null,"3.51 – 4.50 การดำเนินงานระดับดี"]
[null,null,null,null,null,null,null,null,"4.51 - 5.00 การดำเนินงานระดับดีมาก"]
[null,1,"ผลลัพธ์ผู้เรียน",4,"-","-",{"$f":"AVERAGE('ตารางคะแนนรายตัวบ่งชี้ (ป1) '!G7,'ตารางคะแนนรายตัวบ่งชี้ (ป1) '!G9)","v":4.96},{"$f":"ROUND(AVERAGE('ตารางคะแนนรายตัวบ่งชี้ (ป1) '!G7,'ตารางคะแนนรายตัวบ่งชี้ (ป1) '!G9),2)","v":4.96},{"$f":"IF(AND(H11>=4.51,H11<=5),\"การดำเนินงานระดับดีมาก\",IF(AND(H11>=3.51,H11<4.51),\"การดำเนินงานระดับดี\",IF(AND(H11>=2.51,H11<3.51),\"การดำเนินงานระดับพอใช้\",IF(AND(H11>=1.51,H11<2.51),\"การดำเนินงานต้องปรับปรุง\",IF(H11<1.51,\"การดำเนินงานต้องปรับปรุงเร่งด่วน\",\"\")))))","v":"การดำเนินงานระดับดีมาก"}]
[null,2,"ผลลัพธ์การวิจัยและนวัตกรรม",2,"-","-",{"$f":"AVERAGE('ตารางคะแนนรายตัวบ่งชี้ (ป1) '!G15,'ตารางคะแนนรายตัวบ่งชี้ (ป1) '!G17)","v":3.2850000000000001},{"$f":"ROUND(AVERAGE('ตารางคะแนนรายตัวบ่งชี้ (ป1) '!G15,'ตารางคะแนนรายตัวบ่งชี้ (ป1) '!G17),2)","v":3.29},{"$f":"IF(AND(H12>=4.51,H12<=5),\"การดำเนินงานระดับดีมาก\",IF(AND(H12>=3.51,H12<4.51),\"การดำเนินงานระดับดี\",IF(AND(H12>=2.51,H12<3.51),\"การดำเนินงานระดับพอใช้\",IF(AND(H12>=1.51,H12<2.51),\"การดำเนินงานต้องปรับปรุง\",IF(H12<1.51,\"การดำเนินงานต้องปรับปรุงเร่งด่วน\",\"\")))))","v":"การดำเนินงานระดับพอใช้"}]
[null,3,"ผลลัพธ์การบริการวิชาการ",1,"-","-",{"$f":"'ตารางคะแนนรายตัวบ่งชี้ (ป1) '!G20","v":5},{"$f":"ROUND(AVERAGE('ตารางคะแนนรายตัวบ่งชี้ (ป1) '!G20),2)","v":5},"การดำเนินงานระดับดีมาก"]
[null,4,"ผลลัพธ์ศิลปวัฒนธรรม\nและความเป็นไทย\nด้านการละเล่นพื้นบ้านหรือกีฬาไทย",1,"-","-",{"$f":"'ตารางคะแนนรายตัวบ่งชี้ (ป1) '!G22","v":5},{"$f":"ROUND(AVERAGE('ตารางคะแนนรายตัวบ่งชี้ (ป1) '!G22),2)","v":5},"การดำเนินงานระดับดีมาก"]
[null,5,"การบริหารจัดการ",14,{"$f":"AVERAGE('ตารางคะแนนรายตัวบ่งชี้ (ป1) '!G28,'ตารางคะแนนรายตัวบ่งชี้ (ป1) '!G29,'ตารางคะแนนรายตัวบ่งชี้ (ป1) '!G31,'ตารางคะแนนรายตัวบ่งชี้ (ป1) '!G35,'ตารางคะแนนรายตัวบ่งชี้ (ป1) '!G37)","v":2.9699999999999998},{"$f":"AVERAGE('ตารางคะแนนรายตัวบ่งชี้ (ป1) '!G26,'ตารางคะแนนรายตัวบ่งชี้ (ป1) '!G27,'ตารางคะแนนรายตัวบ่งชี้ (ป1) '!G34,'ตารางคะแนนรายตัวบ่งชี้ (ป1) '!G39,'ตารางคะแนนรายตัวบ่งชี้ (ป1) '!G42)","v":5},{"$f":"'ตารางคะแนนรายตัวบ่งชี้ (ป1) '!G40","v":3.73},{"$f":"ROUND(AVERAGE('ตารางคะแนนรายตัวบ่งชี้ (ป1) '!G28,'ตารางคะแนนรายตัวบ่งชี้ (ป1) '!G29,'ตารางคะแนนรายตัวบ่งชี้ (ป1) '!G31,'ตารางคะแนนรายตัวบ่งชี้ (ป1) '!G35,'ตารางคะแนนรายตัวบ่งชี้ (ป1) '!G37,'ตารางคะแนนรายตัวบ่งชี้ (ป1) '!G26,'ตารางคะแนนรายตัวบ่งชี้ (ป1) '!G27,'ตารางคะแนนรายตัวบ่งชี้ (ป1) '!G34,'ตารางคะแนนรายตัวบ่งชี้ (ป1) '!G39,'ตารางคะแนนรายตัวบ่งชี้ (ป1) '!G42,'ตารางคะแนนรายตัวบ่งชี้ (ป1) '!G40),2)","v":3.96},"การดำเนินงานระดับดี"]
[null,6,"อัตลักษณ์ของนักศึกษาด้านกีฬา",2,"-","-",{"$f":"AVERAGE('ตารางคะแนนรายตัวบ่งชี้ (ป1) '!G44)","v":5},{"$f":"ROUND(AVERAGE('ตารางคะแนนรายตัวบ่งชี้ (ป1) '!G44),2)","v":5},"การดำเนินงานระดับดีมาก"]
[null,"รวมจำนวนตัวบ่งชี้",null,{"$f":"SUM(D11:D16)","v":24},7,6,11,{"$f":"ROUND(AVERAGE('ตารางคะแนนรายตัวบ่งชี้ (ป1) '!G7,'ตารางคะแนนรายตัวบ่งชี้ (ป1) '!G9,'ตารางคะแนนรายตัวบ่งชี้ (ป1) '!G15,'ตารางคะแนนรายตัวบ่งชี้ (ป1) '!G17,'ตารางคะแนนรายตัวบ่งชี้ (ป1) '!G20,'ตารางคะแนนรายตัวบ่งชี้ (ป1) '!G22,'ตารางคะแนนรายตัวบ่งชี้ (ป1) '!G28,'ตารางคะแนนรายตัวบ่งชี้ (ป1) '!G29,'ตารางคะแนนรายตัวบ่งชี้ (ป1) '!G31,'ตารางคะแนนรายตัวบ่งชี้ (ป1) '!G35,'ตารางคะแนนรายตัวบ่งชี้ (ป1) '!G37,'ตารางคะแนนรายตัวบ่งชี้ (ป1) '!G26,'ตารางคะแนนรายตัวบ่งชี้ (ป1) '!G27,'ตารางคะแนนรายตัวบ่งชี้ (ป1) '!G34,'ตารางคะแนนรายตัวบ่งชี้ (ป1) '!G39,'ตารางคะแนนรายตัวบ่งชี้ (ป1) '!G42,'ตารางคะแนนรายตัวบ่งชี้ (ป1) '!G40,'ตารางคะแนนรายตัวบ่งชี้ (ป1) '!G44),2)","v":4.17},"การดำเนินงานระดับดี"]
[null,"คะแนนเฉลี่ย",null,null,{"$f":"AVERAGE('ตารางคะแนนรายตัวบ่งชี้ (ป1) '!G28,'ตารางคะแนนรายตัวบ่งชี้ (ป1) '!G29,'ตารางคะแนนรายตัวบ่งชี้ (ป1) '!G31,'ตารางคะแนนรายตัวบ่งชี้ (ป1) '!G35,'ตารางคะแนนรายตัวบ่งชี้ (ป1) '!G37)","v":2.9699999999999998},{"$f":"AVERAGE('ตารางคะแนนรายตัวบ่งชี้ (ป1) '!G26,'ตารางคะแนนรายตัวบ่งชี้ (ป1) '!G27,'ตารางคะแนนรายตัวบ่งชี้ (ป1) '!G34,'ตารางคะแนนรายตัวบ่งชี้ (ป1) '!G39,'ตารางคะแนนรายตัวบ่งชี้ (ป1) '!G42)","v":5},{"$f":"AVERAGE('ตารางคะแนนรายตัวบ่งชี้ (ป1) '!G7,'ตารางคะแนนรายตัวบ่งชี้ (ป1) '!G9,'ตารางคะแนนรายตัวบ่งชี้ (ป1) '!G15,'ตารางคะแนนรายตัวบ่งชี้ (ป1) '!G17,'ตารางคะแนนรายตัวบ่งชี้ (ป1) '!G20,'ตารางคะแนนรายตัวบ่งชี้ (ป1) '!G22,'ตารางคะแนนรายตัวบ่งชี้ (ป1) '!G40,'ตารางคะแนนรายตัวบ่งชี้ (ป1) '!G44)","v":4.4024999999999999},null,"การดำเนินงานต้องปรับปรุงเร่งด่วน"]
[null,"ผลการประเมิน\nระดับคณะ",null,null,{"$f":"IF(AND(E18>=4.51,E18<=5),\"การดำเนินงานระดับดีมาก\",IF(AND(E18>=3.51,E18<4.51),\"การดำเนินงานระดับดี\",IF(AND(E18>=2.51,E18<3.51),\"การดำเนินงานระดับพอใช้\",IF(AND(E18>=1.51,E18<2.51),\"การดำเนินงานต้องปรับปรุง\",IF(E18<1.51,\"การดำเนินงานต้องปรับปรุงเร่งด่วน\",\"\")))))","v":"การดำเนินงานระดับพอใช้"},{"$f":"IF(AND(F18>=4.51,F18<=5),\"การดำเนินงานระดับดีมาก\",IF(AND(F18>=3.51,F18<4.51),\"การดำเนินงานระดับดี\",IF(AND(F18>=2.51,F18<3.51),\"การดำเนินงานระดับพอใช้\",IF(AND(F18>=1.51,F18<2.51),\"การดำเนินงานต้องปรับปรุง\",IF(F18<1.51,\"การดำเนินงานต้องปรับปรุงเร่งด่วน\",\"\")))))","v":"การดำเนินงานระดับดีมาก"},"การดำเนินงานระดับดี",null,"การดำเนินงานต้องปรับปรุงเร่งด่วน"]

{"sheet":"variable","index":3,"n_rows":5,"n_cols":2,"rows_kept":5,"cut":false,"hidden":true,"merged":[]}
["สัดส่วนจำนวนนักศึกษาเต็มเวลาต่ออาจารย์ประจำ (เกณฑ์มาตรฐาน)",{"$f":"IF('ข้อมูลพื้นฐาน (โปรดกรอกข้อมูล)'!A4=\"วิทยาศาสตร์การกีฬาและสุขภาพ\",20,IF('ข้อมูลพื้นฐาน (โปรดกรอกข้อมูล)'!A4=\"ศิลปศาสตร์\",25,30))","v":20}]
["จำนวนเงินสนับสนุนงานวิจัยและนวัตกรรมจากภายในและภายนอกที่กำหนดให้เป็นคะแนนเต็ม 5 (เงินรายได้)",{"$f":"IF('ข้อมูลพื้นฐาน (โปรดกรอกข้อมูล)'!A4=\"วิทยาศาสตร์การกีฬาและสุขภาพ\",25000,IF('ข้อมูลพื้นฐาน (โปรดกรอกข้อมูล)'!A4=\"ศิลปศาสตร์\",12500,12500))","v":25000}]
["ร้อยละของผลรวมถ่วงน้ำหนักของผลงานทางวิชาการของอาจารย์ประจำคณะที่กำหนดไว้เป็นคะแนนเต็ม 5",{"$f":"IF('ข้อมูลพื้นฐาน (โปรดกรอกข้อมูล)'!A4=\"วิทยาศาสตร์การกีฬาและสุขภาพ\",30,IF('ข้อมูลพื้นฐาน (โปรดกรอกข้อมูล)'!A4=\"ศิลปศาสตร์\",20,20))","v":30}]
["จำนวนเงินสนับสนุนงานวิจัยและนวัตกรรมจากภายในและภายนอกที่กำหนดให้เป็นคะแนนเต็ม 5 (เงินงบประมาณแผ่นดิน)",{"$f":"IF('ข้อมูลพื้นฐาน (โปรดกรอกข้อมูล)'!A4=\"วิทยาศาสตร์การกีฬาและสุขภาพ\",50000,IF('ข้อมูลพื้นฐาน (โปรดกรอกข้อมูล)'!A4=\"ศิลปศาสตร์\",25000,25000))","v":50000}]
["การเข้าร่วมการแข่งขันกีฬาระดับชาติหรือนานาชาติของนักศึกษา ",{"$f":"IF('ข้อมูลพื้นฐาน (โปรดกรอกข้อมูล)'!A4=\"ศึกษาศาสตร์\",60,IF('ข้อมูลพื้นฐาน (โปรดกรอกข้อมูล)'!A4=\"ศิลปศาสตร์\",20,20))","v":20}]